[Event "Late-Titled-Tuesday-Blitz-April-30-2024"]
[Site "Chess.com"]
[Date "2024.04.30"]
[Round "1"]
[White "Ajedrez_con_German"]
[Black "giovannibrandao7"]
[Result "1-0"]
[WhiteElo "2633"]
[BlackElo "2331"]
[TimeControl "180+1"]
[EndTime "14:07:42 PDT"]
[Termination "Ajedrez_con_German won by resignation"]

1. a3 {[%clk 0:02:49.8]} 1... d5 {[%clk 0:02:59]} 2. e3 {[%clk 0:02:12.2]} 2...
e5 {[%clk 0:02:58.8]} 3. d4 {[%clk 0:01:53.7]} 3... exd4 {[%clk 0:02:54.8]} 4.
exd4 {[%clk 0:01:51.1]} 4... Nf6 {[%clk 0:02:54.8]} 5. c4 {[%clk 0:01:51]} 5...
dxc4 {[%clk 0:02:53.7]} 6. Bxc4 {[%clk 0:01:50.3]} 6... Bd6 {[%clk 0:02:49.1]}
7. Nf3 {[%clk 0:01:49.9]} 7... O-O {[%clk 0:02:49.1]} 8. O-O {[%clk 0:01:49.8]}
8... c6 {[%clk 0:02:49.7]} 9. Nc3 {[%clk 0:01:49.2]} 9... Bg4 {[%clk 0:02:49.8]}
10. h3 {[%clk 0:01:47.8]} 10... Bh5 {[%clk 0:02:49.9]} 11. g4 {[%clk 0:01:40.3]}
11... Bg6 {[%clk 0:02:49.1]} 12. Ne5 {[%clk 0:01:39.6]} 12... Nbd7 {[%clk
0:02:34.6]} 13. f4 {[%clk 0:01:25.8]} 13... c5 {[%clk 0:02:29.5]} 14. Nxd7
{[%clk 0:01:13.8]} 14... Qxd7 {[%clk 0:02:25.4]} 15. f5 {[%clk 0:01:14.1]} 15...
cxd4 {[%clk 0:02:25.3]} 16. Ne2 {[%clk 0:01:07.1]} 16... Bc5 {[%clk 0:02:10.8]}
17. Qd3 {[%clk 0:00:58.3]} 17... Rae8 {[%clk 0:01:23.3]} 18. fxg6 {[%clk
0:00:55.4]} 18... hxg6 {[%clk 0:01:24.2]} 19. Rxf6 {[%clk 0:00:35.9]} 19... Rxe2
{[%clk 0:01:07.5]} 20. Rf2 {[%clk 0:00:12.4]} 20... Re1+ {[%clk 0:00:48.9]} 21.
Rf1 {[%clk 0:00:12.5]} 21... Rxf1+ {[%clk 0:00:47.5]} 22. Kxf1 {[%clk
0:00:12.8]} 22... Qc6 {[%clk 0:00:40.6]} 23. Kg1 {[%clk 0:00:12.9]} 23... Re8
{[%clk 0:00:33]} 24. Bd2 {[%clk 0:00:13.3]} 24... a6 {[%clk 0:00:22.8]} 25. Rf1
{[%clk 0:00:12.9]} 25... Re7 {[%clk 0:00:19.9]} 26. Qf3 {[%clk 0:00:04.3]} 26...
Qxf3 {[%clk 0:00:19.2]} 27. Rxf3 {[%clk 0:00:04.6]} 27... b5 {[%clk 0:00:19.2]}
28. Bd3 {[%clk 0:00:04.2]} 28... Bb6 {[%clk 0:00:14.2]} 29. Kf2 {[%clk
0:00:04.7]} 29... f6 {[%clk 0:00:13.2]} 30. Bb4 {[%clk 0:00:04.6]} 30... Rc7
{[%clk 0:00:12]} 31. Bd2 {[%clk 0:00:04.8]} 31... Kf7 {[%clk 0:00:12.2]} 32. Rf4
{[%clk 0:00:04.7]} 32... Rc5 {[%clk 0:00:09.5]} 33. Re4 {[%clk 0:00:05]} 33...
Rd5 {[%clk 0:00:07.8]} 34. Ke2 {[%clk 0:00:05.3]} 34... Rd6 {[%clk 0:00:08.2]}
35. Rf4 {[%clk 0:00:05.4]} 35... Rd7 {[%clk 0:00:08.7]} 36. Re4 {[%clk
0:00:05.9]} 36... Rd6 {[%clk 0:00:08.1]} 37. Bb4 {[%clk 0:00:06.3]} 37... Rd5
{[%clk 0:00:08.3]} 38. Re7+ {[%clk 0:00:05.7]} 38... Kg8 {[%clk 0:00:08]} 39.
Rb7 {[%clk 0:00:06.4]} 39... Bc5 {[%clk 0:00:07.2]} 40. Bxc5 {[%clk 0:00:06.2]}
40... Rxc5 {[%clk 0:00:08.1]} 41. Bxg6 {[%clk 0:00:06.5]} 41... Kf8 {[%clk
0:00:07]} 42. Rf7+ {[%clk 0:00:06.7]} 42... Kg8 {[%clk 0:00:07.6]} 43. Rd7
{[%clk 0:00:06.8]} 1-0

[Event "Late-Titled-Tuesday-Blitz-April-30-2024"]
[Site "Chess.com"]
[Date "2024.04.30"]
[Round "1"]
[White "JaackCamel"]
[Black "ahmedkandiliii"]
[Result "0-1"]
[WhiteElo "2266"]
[BlackElo "2608"]
[TimeControl "180+1"]
[EndTime "14:07:43 PDT"]
[Termination "ahmedkandiliii won by resignation"]

1. d4 {[%clk 0:02:59.5]} 1... Nf6 {[%clk 0:02:58.7]} 2. c4 {[%clk 0:02:58.8]}
2... e6 {[%clk 0:02:58.6]} 3. Nc3 {[%clk 0:02:58.3]} 3... d5 {[%clk 0:02:58.8]}
4. cxd5 {[%clk 0:02:57.3]} 4... exd5 {[%clk 0:02:59.7]} 5. Bg5 {[%clk
0:02:56.7]} 5... Be7 {[%clk 0:02:55.5]} 6. e3 {[%clk 0:02:56.4]} 6... h6 {[%clk
0:02:55.5]} 7. Bh4 {[%clk 0:02:55.9]} 7... O-O {[%clk 0:02:55.8]} 8. Bd3 {[%clk
0:02:55.1]} 8... c5 {[%clk 0:02:54]} 9. dxc5 {[%clk 0:02:53.3]} 9... Nc6 {[%clk
0:02:53.6]} 10. Nf3 {[%clk 0:02:51]} 10... Bg4 {[%clk 0:02:52.3]} 11. h3 {[%clk
0:02:47.6]} 11... Be6 {[%clk 0:02:41.9]} 12. O-O {[%clk 0:02:44.2]} 12... Bxc5
{[%clk 0:02:41.8]} 13. a3 {[%clk 0:02:26.7]} 13... Bd6 {[%clk 0:02:40.6]} 14.
Nb5 {[%clk 0:02:25]} 14... Bb8 {[%clk 0:02:38.5]} 15. Nbd4 {[%clk 0:02:23.4]}
15... Nxd4 {[%clk 0:02:35.3]} 16. Nxd4 {[%clk 0:02:22.9]} 16... Qe7 {[%clk
0:02:20.1]} 17. Qf3 {[%clk 0:02:19.7]} 17... g5 {[%clk 0:02:08.3]} 18. Bg3
{[%clk 0:02:19]} 18... g4 {[%clk 0:02:08.3]} 19. hxg4 {[%clk 0:01:57.8]} 19...
Bxg4 {[%clk 0:02:09.2]} 20. Nf5 {[%clk 0:01:46.6]} 20... Bxf5 {[%clk 0:01:51]}
21. Qxf5 {[%clk 0:01:41.7]} 21... Bxg3 {[%clk 0:01:49.5]} 22. fxg3 {[%clk
0:01:37.9]} 22... Qxe3+ {[%clk 0:01:49.7]} 23. Kh1 {[%clk 0:01:32.1]} 23... Ne4
{[%clk 0:01:47.9]} 24. Rf3 {[%clk 0:01:24.5]} 24... Qd4 {[%clk 0:01:35.8]} 25.
Raf1 {[%clk 0:01:15.4]} 25... Rae8 {[%clk 0:01:26.1]} 26. Kh2 {[%clk 0:01:13.5]}
26... Re5 {[%clk 0:01:22.9]} 27. Qg4+ {[%clk 0:01:02.6]} 27... Rg5 {[%clk
0:01:22.6]} 28. Qh4 {[%clk 0:00:59.4]} 28... Qe5 {[%clk 0:01:14.1]} 29. Qf4
{[%clk 0:00:40.1]} 29... Qd4 {[%clk 0:00:57.5]} 30. g4 {[%clk 0:00:37.6]} 30...
Qg7 {[%clk 0:00:49.5]} 31. Bxe4 {[%clk 0:00:31.7]} 31... Rxg4 {[%clk 0:00:45.3]}
32. Qxg4 {[%clk 0:00:28.9]} 32... Qxg4 {[%clk 0:00:45]} 33. Rg3 {[%clk
0:00:27.5]} 33... Qxg3+ {[%clk 0:00:45.4]} 34. Kxg3 {[%clk 0:00:26.8]} 34...
dxe4 {[%clk 0:00:46.3]} 35. Kf4 {[%clk 0:00:20.3]} 35... Re8 {[%clk 0:00:45.5]}
36. Re1 {[%clk 0:00:20]} 36... Kg7 {[%clk 0:00:44.9]} 37. Kf5 {[%clk 0:00:20.2]}
37... e3 {[%clk 0:00:43.3]} 38. Re2 {[%clk 0:00:20]} 38... Re6 {[%clk 0:00:43]}
39. g4 {[%clk 0:00:19.9]} 39... b5 {[%clk 0:00:39.2]} 40. b3 {[%clk 0:00:19.5]}
40... a5 {[%clk 0:00:39.2]} 41. Kf4 {[%clk 0:00:17.8]} 41... Kg6 {[%clk
0:00:38.4]} 42. Re1 {[%clk 0:00:14.1]} 42... e2 {[%clk 0:00:38.2]} 43. Kf3
{[%clk 0:00:13.7]} 43... Kg5 {[%clk 0:00:38.1]} 44. Kg3 {[%clk 0:00:11.5]} 44...
b4 {[%clk 0:00:37.1]} 45. axb4 {[%clk 0:00:11.2]} 45... axb4 {[%clk 0:00:37.4]}
46. Kf2 {[%clk 0:00:11.1]} 46... Kf4 {[%clk 0:00:35.9]} 47. Kg2 {[%clk
0:00:07.6]} 47... Kxg4 {[%clk 0:00:35.8]} 48. Kf2 {[%clk 0:00:06.5]} 48... Kf4
{[%clk 0:00:35.9]} 49. Kg2 {[%clk 0:00:06.4]} 49... h5 {[%clk 0:00:35.9]} 50.
Kf2 {[%clk 0:00:05.7]} 50... h4 {[%clk 0:00:36]} 51. Kg2 {[%clk 0:00:05.5]}
51... f6 {[%clk 0:00:35.4]} 52. Kf2 {[%clk 0:00:05.6]} 52... h3 {[%clk
0:00:35.4]} 53. Kg1 {[%clk 0:00:05.1]} 53... Kg3 {[%clk 0:00:35.1]} 54. Rc1
{[%clk 0:00:01.9]} 0-1

[Event "Late-Titled-Tuesday-Blitz-April-30-2024"]
[Site "Chess.com"]
[Date "2024.04.30"]
[Round "1"]
[White "superchess02"]
[Black "UK_23"]
[Result "1-0"]
[WhiteElo "2853"]
[BlackElo "2471"]
[TimeControl "180+1"]
[EndTime "14:07:44 PDT"]
[Termination "superchess02 won on time"]

1. d4 {[%clk 0:02:56.3]} 1... Nf6 {[%clk 0:02:56.1]} 2. c4 {[%clk 0:02:56.9]}
2... c5 {[%clk 0:02:54.4]} 3. d5 {[%clk 0:02:56.4]} 3... e6 {[%clk 0:02:54.7]}
4. Nc3 {[%clk 0:02:55.7]} 4... exd5 {[%clk 0:02:55.2]} 5. cxd5 {[%clk
0:02:56.5]} 5... d6 {[%clk 0:02:55.9]} 6. e4 {[%clk 0:02:57.2]} 6... g6 {[%clk
0:02:56.3]} 7. Nge2 {[%clk 0:02:57.8]} 7... h5 {[%clk 0:02:55.5]} 8. f3 {[%clk
0:02:50.6]} 8... Bg7 {[%clk 0:02:53.2]} 9. Bf4 {[%clk 0:02:50.1]} 9... O-O
{[%clk 0:02:47.4]} 10. Qd2 {[%clk 0:02:49.9]} 10... a6 {[%clk 0:02:28.2]} 11. a4
{[%clk 0:02:49.7]} 11... Ne8 {[%clk 0:02:21.1]} 12. g3 {[%clk 0:02:30.8]} 12...
Nd7 {[%clk 0:02:20.7]} 13. Bg2 {[%clk 0:02:27.6]} 13... Ne5 {[%clk 0:02:20.4]}
14. O-O {[%clk 0:02:18.7]} 14... Bd7 {[%clk 0:02:12.1]} 15. Bg5 {[%clk
0:02:10.1]} 15... Bf6 {[%clk 0:01:53.9]} 16. Bxf6 {[%clk 0:02:09.9]} 16... Nxf6
{[%clk 0:01:52.1]} 17. b3 {[%clk 0:01:58.5]} 17... b5 {[%clk 0:01:48.2]} 18. f4
{[%clk 0:01:49.5]} 18... Neg4 {[%clk 0:01:47.4]} 19. h3 {[%clk 0:01:45.7]} 19...
Nh6 {[%clk 0:01:44.4]} 20. e5 {[%clk 0:01:28.5]} 20... Ne8 {[%clk 0:01:38.5]}
21. e6 {[%clk 0:01:28]} 21... fxe6 {[%clk 0:01:23.7]} 22. dxe6 {[%clk
0:01:27.6]} 22... Bxe6 {[%clk 0:01:24.6]} 23. axb5 {[%clk 0:01:12.5]} 23... a5
{[%clk 0:01:13.2]} 24. Ne4 {[%clk 0:00:55.2]} 24... Nf5 {[%clk 0:01:07]} 25. Ng5
{[%clk 0:00:52.5]} 25... Bxb3 {[%clk 0:01:04.8]} 26. Rfb1 {[%clk 0:00:22.9]}
26... Bc4 {[%clk 0:00:56.4]} 27. Bd5+ {[%clk 0:00:21.8]} 27... Bxd5 {[%clk
0:00:50.2]} 28. Qxd5+ {[%clk 0:00:22.7]} 28... Kh8 {[%clk 0:00:42.8]} 29. Nf7+
{[%clk 0:00:20.8]} 29... Rxf7 {[%clk 0:00:42.7]} 30. Qxf7 {[%clk 0:00:21.7]}
30... c4 {[%clk 0:00:22.7]} 31. b6 {[%clk 0:00:21.4]} 31... Rb8 {[%clk
0:00:20.5]} 32. b7 {[%clk 0:00:20.8]} 32... d5 {[%clk 0:00:17.8]} 33. Qxg6
{[%clk 0:00:20.6]} 33... Neg7 {[%clk 0:00:17.3]} 34. g4 {[%clk 0:00:19.7]} 34...
hxg4 {[%clk 0:00:16.1]} 35. hxg4 {[%clk 0:00:20.6]} 35... Ne3 {[%clk 0:00:16.6]}
36. Kf2 {[%clk 0:00:19.1]} 36... Nc2 {[%clk 0:00:15.9]} 37. Qf7 {[%clk 0:00:18]}
37... Qh4+ {[%clk 0:00:12.4]} 38. Kg2 {[%clk 0:00:14.5]} 38... Ne3+ {[%clk
0:00:12.6]} 39. Kf3 {[%clk 0:00:13.9]} 39... Nxg4 {[%clk 0:00:10.1]} 40. Rh1
{[%clk 0:00:13]} 40... Nh2+ {[%clk 0:00:10.8]} 41. Kg2 {[%clk 0:00:13]} 41...
Qg4+ {[%clk 0:00:05.4]} 42. Ng3 {[%clk 0:00:13.2]} 42... Qf3+ {[%clk 0:00:01.6]}
43. Kxh2 {[%clk 0:00:13.6]} 43... Qf2+ {[%clk 0:00:00.3]} 44. Kh3 {[%clk
0:00:13.8]} 1-0

[Event "Late-Titled-Tuesday-Blitz-April-30-2024"]
[Site "Chess.com"]
[Date "2024.04.30"]
[Round "1"]
[White "chessisveryfun1264"]
[Black "Sacbutt"]
[Result "1-0"]
[WhiteElo "2615"]
[BlackElo "2285"]
[TimeControl "180+1"]
[EndTime "14:07:46 PDT"]
[Termination "chessisveryfun1264 won on time"]

1. e4 {[%clk 0:02:57.9]} 1... d5 {[%clk 0:02:58.3]} 2. Nc3 {[%clk 0:02:50.9]}
2... d4 {[%clk 0:02:57.2]} 3. Nce2 {[%clk 0:02:49.7]} 3... c5 {[%clk 0:02:57.6]}
4. d3 {[%clk 0:02:50]} 4... Nc6 {[%clk 0:02:58]} 5. g3 {[%clk 0:02:50.6]} 5...
Bg4 {[%clk 0:02:57.7]} 6. h3 {[%clk 0:02:49.8]} 6... Bd7 {[%clk 0:02:53]} 7. Bg2
{[%clk 0:02:49.5]} 7... e5 {[%clk 0:02:52.4]} 8. f4 {[%clk 0:02:50.1]} 8... Bd6
{[%clk 0:02:51.8]} 9. Nf3 {[%clk 0:02:49.4]} 9... Nge7 {[%clk 0:02:50.9]} 10.
O-O {[%clk 0:02:48.8]} 10... Qc8 {[%clk 0:02:49.2]} 11. f5 {[%clk 0:02:48.5]}
11... f6 {[%clk 0:02:43.3]} 12. g4 {[%clk 0:02:48.7]} 12... h6 {[%clk
0:02:40.3]} 13. h4 {[%clk 0:02:48.3]} 13... Qc7 {[%clk 0:02:38.3]} 14. c3 {[%clk
0:02:41.5]} 14... O-O-O {[%clk 0:02:36.4]} 15. Qc2 {[%clk 0:02:38.1]} 15... Kb8
{[%clk 0:02:34.6]} 16. a3 {[%clk 0:02:37.5]} 16... g6 {[%clk 0:02:28.4]} 17. h5
{[%clk 0:02:33]} 17... gxh5 {[%clk 0:02:25.4]} 18. gxh5 {[%clk 0:02:33.9]} 18...
Rdg8 {[%clk 0:02:22.2]} 19. Nh4 {[%clk 0:02:34.3]} 19... Be8 {[%clk 0:02:06.2]}
20. Ng6 {[%clk 0:02:33.9]} 20... Nxg6 {[%clk 0:02:00.5]} 21. hxg6 {[%clk
0:02:30.7]} 21... h5 {[%clk 0:01:46]} 22. c4 {[%clk 0:02:25]} 22... h4 {[%clk
0:01:44.6]} 23. Bh3 {[%clk 0:02:23.2]} 23... Qd7 {[%clk 0:01:21.2]} 24. Kg2
{[%clk 0:02:12.1]} 24... Qg7 {[%clk 0:01:18.8]} 25. Kh2 {[%clk 0:02:09.9]} 25...
Bd7 {[%clk 0:00:54.2]} 26. Rg1 {[%clk 0:02:01.2]} 26... Qe7 {[%clk 0:00:50.3]}
27. Rg4 {[%clk 0:02:00.5]} 27... Qf8 {[%clk 0:00:42.7]} 28. Ng1 {[%clk
0:02:00.2]} 28... Ne7 {[%clk 0:00:39.7]} 29. Rg2 {[%clk 0:01:55.6]} 29... Qc8
{[%clk 0:00:33.5]} 30. Qf2 {[%clk 0:01:51.8]} 30... Rg7 {[%clk 0:00:26.7]} 31.
Kh1 {[%clk 0:01:51.8]} 31... Qe8 {[%clk 0:00:25.8]} 32. Nf3 {[%clk 0:01:51.5]}
32... Qd8 {[%clk 0:00:20.8]} 33. Nxh4 {[%clk 0:01:50.2]} 33... Qe8 {[%clk
0:00:19.6]} 34. Bd2 {[%clk 0:01:50.6]} 34... Qc8 {[%clk 0:00:19.4]} 35. Rag1
{[%clk 0:01:50.3]} 35... Rh5 {[%clk 0:00:18.1]} 36. Bg4 {[%clk 0:01:49]} 36...
Rh8 {[%clk 0:00:15]} 37. Rh2 {[%clk 0:01:49.6]} 37... a6 {[%clk 0:00:12.4]} 38.
Nf3 {[%clk 0:01:50.1]} 38... Rxh2+ {[%clk 0:00:11.9]} 39. Qxh2 {[%clk 0:01:49]}
39... Rg8 {[%clk 0:00:12.2]} 40. Bh6 {[%clk 0:01:44.8]} 40... Nxg6 {[%clk
0:00:11.3]} 41. fxg6 {[%clk 0:01:33.9]} 41... Bxg4 {[%clk 0:00:11.3]} 42. Nh4
{[%clk 0:01:34.4]} 42... f5 {[%clk 0:00:08.8]} 43. Qg3 {[%clk 0:01:21.1]} 43...
Kc7 {[%clk 0:00:05.5]} 44. g7 {[%clk 0:01:20.7]} 44... Kc6 {[%clk 0:00:00.4]}
45. Ng6 {[%clk 0:01:19.9]} 45... Qe6 {[%clk 0:00:00.5]} 46. exf5 {[%clk
0:01:15.5]} 46... Bxf5 {[%clk 0:00:01.4]} 47. Qf3+ {[%clk 0:01:04.3]} 47... Kb6
{[%clk 0:00:01.5]} 48. Qd5 {[%clk 0:01:03.6]} 48... Qxd5+ {[%clk 0:00:01.6]} 49.
cxd5 {[%clk 0:01:04.4]} 49... Kc7 {[%clk 0:00:01.7]} 50. Rg5 {[%clk 0:01:02.4]}
50... Bxd3 {[%clk 0:00:01.8]} 51. Nxe5 {[%clk 0:01:03]} 51... Bxe5 {[%clk
0:00:02]} 52. Rxe5 {[%clk 0:01:03.9]} 52... Kd7 {[%clk 0:00:02.1]} 53. Kg2
{[%clk 0:01:00.1]} 53... Bh7 {[%clk 0:00:02]} 54. Kf2 {[%clk 0:00:56.7]} 54...
b6 {[%clk 0:00:01.5]} 55. Ke2 {[%clk 0:00:56.8]} 55... Re8 {[%clk 0:00:01.9]}
56. Rxe8 {[%clk 0:00:50.5]} 56... Kxe8 {[%clk 0:00:02.8]} 57. d6 {[%clk
0:00:50.9]} 57... Kd7 {[%clk 0:00:03.3]} 58. Bf4 {[%clk 0:00:51.5]} 58... Bg8
{[%clk 0:00:03.8]} 59. Be5 {[%clk 0:00:50.5]} 59... Kc6 {[%clk 0:00:04.1]} 60.
Kf3 {[%clk 0:00:50.7]} 60... Kd7 {[%clk 0:00:04.5]} 61. Ke4 {[%clk 0:00:50.1]}
61... Ke6 {[%clk 0:00:05]} 62. Kf4 {[%clk 0:00:48.9]} 62... b5 {[%clk
0:00:05.2]} 63. b4 {[%clk 0:00:48.2]} 63... cxb4 {[%clk 0:00:04]} 64. axb4
{[%clk 0:00:49.1]} 64... Kd5 {[%clk 0:00:04]} 65. d7 {[%clk 0:00:48.7]} 1-0

[Event "Late-Titled-Tuesday-Blitz-April-30-2024"]
[Site "Chess.com"]
[Date "2024.04.30"]
[Round "1"]
[White "miraitrunks"]
[Black "DucksParadise"]
[Result "0-1"]
[WhiteElo "2239"]
[BlackElo "2596"]
[TimeControl "180+1"]
[EndTime "14:07:46 PDT"]
[Termination "DucksParadise won by resignation"]

1. e4 {[%clk 0:02:56.5]} 1... e5 {[%clk 0:02:58.3]} 2. Nf3 {[%clk 0:02:56.9]}
2... Nf6 {[%clk 0:02:57.6]} 3. Nxe5 {[%clk 0:02:55.7]} 3... d6 {[%clk
0:02:56.3]} 4. Nc4 {[%clk 0:02:55.9]} 4... Nxe4 {[%clk 0:02:55.2]} 5. d4 {[%clk
0:02:56.4]} 5... d5 {[%clk 0:02:49.1]} 6. Ne3 {[%clk 0:02:55]} 6... c6 {[%clk
0:02:44.1]} 7. Bd3 {[%clk 0:02:53.9]} 7... f5 {[%clk 0:02:37.6]} 8. O-O {[%clk
0:02:52.9]} 8... Bd6 {[%clk 0:02:37.1]} 9. Qh5+ {[%clk 0:02:42.3]} 9... g6
{[%clk 0:02:34.2]} 10. Qh6 {[%clk 0:02:42.4]} 10... Bf8 {[%clk 0:02:29]} 11. Qf4
{[%clk 0:02:41.3]} 11... Bd6 {[%clk 0:02:22.2]} 12. Qh6 {[%clk 0:02:41.2]} 12...
Bf8 {[%clk 0:02:20.2]} 13. Qf4 {[%clk 0:02:41.1]} 13... Qd6 {[%clk 0:02:14]} 14.
Qh4 {[%clk 0:02:22.8]} 14... Be7 {[%clk 0:02:06.9]} 15. Qh6 {[%clk 0:02:22.3]}
15... Qf6 {[%clk 0:01:44.5]} 16. f3 {[%clk 0:01:54.3]} 16... Ng5 {[%clk
0:01:43.4]} 17. Kh1 {[%clk 0:01:40.3]} 17... Nf7 {[%clk 0:01:42.4]} 18. Qf4
{[%clk 0:01:21]} 18... Bd6 {[%clk 0:01:37]} 19. Ng4 {[%clk 0:01:15.4]} 19... Qe7
{[%clk 0:01:11]} 20. Ne5 {[%clk 0:01:12]} 20... Nxe5 {[%clk 0:01:08.2]} 21. dxe5
{[%clk 0:01:11.9]} 21... Bxe5 {[%clk 0:01:08.2]} 22. Qh6 {[%clk 0:01:08.9]}
22... Bg7 {[%clk 0:01:06.3]} 23. Qf4 {[%clk 0:00:59.5]} 23... O-O {[%clk
0:01:05.2]} 24. Nc3 {[%clk 0:00:59.8]} 24... Nd7 {[%clk 0:01:01.8]} 25. Bd2
{[%clk 0:00:59]} 25... Qe5 {[%clk 0:01:00.8]} 26. Qh4 {[%clk 0:00:56.6]} 26...
Qd4 {[%clk 0:00:58.1]} 27. Qe7 {[%clk 0:00:51.8]} 27... Qf6 {[%clk 0:00:55.9]}
28. Qb4 {[%clk 0:00:46.5]} 28... a5 {[%clk 0:00:43.6]} 29. Qa3 {[%clk
0:00:38.2]} 29... f4 {[%clk 0:00:34]} 30. Ne2 {[%clk 0:00:37]} 30... g5 {[%clk
0:00:31.2]} 31. Bc3 {[%clk 0:00:36.1]} 31... Qh6 {[%clk 0:00:28.2]} 32. Bxg7
{[%clk 0:00:33.2]} 32... Qxg7 {[%clk 0:00:29.1]} 33. Rae1 {[%clk 0:00:30.6]}
33... Ne5 {[%clk 0:00:28.9]} 34. Nd4 {[%clk 0:00:28.7]} 34... Bd7 {[%clk
0:00:22.2]} 35. Qd6 {[%clk 0:00:24.5]} 35... Rae8 {[%clk 0:00:18]} 36. c3 {[%clk
0:00:20.4]} 36... Nxd3 {[%clk 0:00:16.6]} 37. Rd1 {[%clk 0:00:20.2]} 37... Ne5
{[%clk 0:00:15.6]} 38. Rfe1 {[%clk 0:00:20.6]} 38... Nc4 {[%clk 0:00:15.7]} 39.
Qc5 {[%clk 0:00:20.5]} 39... b6 {[%clk 0:00:15.4]} 40. Rxe8 {[%clk 0:00:16.4]}
40... bxc5 {[%clk 0:00:15]} 41. Rxf8+ {[%clk 0:00:16.7]} 41... Qxf8 {[%clk
0:00:15.5]} 42. Ne2 {[%clk 0:00:17]} 42... Qe7 {[%clk 0:00:15.6]} 43. Ng1 {[%clk
0:00:17.5]} 43... Qe3 {[%clk 0:00:15.3]} 44. Rf1 {[%clk 0:00:18.4]} 44... Bf5
{[%clk 0:00:15.3]} 45. h4 {[%clk 0:00:18.4]} 45... g4 {[%clk 0:00:15]} 46. fxg4
{[%clk 0:00:18.5]} 46... Bxg4 {[%clk 0:00:15.9]} 47. Nf3 {[%clk 0:00:19]} 47...
Bxf3 {[%clk 0:00:15.3]} 48. Rxf3 {[%clk 0:00:19.9]} 48... Qxf3 {[%clk
0:00:15.7]} 49. gxf3 {[%clk 0:00:20.2]} 49... Kf7 {[%clk 0:00:16.1]} 0-1

[Event "Late-Titled-Tuesday-Blitz-April-30-2024"]
[Site "Chess.com"]
[Date "2024.04.30"]
[Round "1"]
[White "HamedWafa4"]
[Black "dimitrisl"]
[Result "0-1"]
[WhiteElo "2723"]
[BlackElo "2439"]
[TimeControl "180+1"]
[EndTime "14:07:47 PDT"]
[Termination "dimitrisl won by resignation"]

1. d4 {[%clk 0:02:55]} 1... Nf6 {[%clk 0:02:59.9]} 2. Nf3 {[%clk 0:02:52.7]}
2... g6 {[%clk 0:02:59.8]} 3. Nc3 {[%clk 0:02:49]} 3... Bg7 {[%clk 0:03:00.7]}
4. e4 {[%clk 0:02:49]} 4... d6 {[%clk 0:03:01.2]} 5. h3 {[%clk 0:02:45.1]} 5...
O-O {[%clk 0:03:00.8]} 6. Be2 {[%clk 0:02:45.5]} 6... e5 {[%clk 0:02:56.8]} 7.
Be3 {[%clk 0:02:42.3]} 7... Nc6 {[%clk 0:02:48.6]} 8. Qd2 {[%clk 0:02:37.7]}
8... exd4 {[%clk 0:02:46.6]} 9. Nxd4 {[%clk 0:02:36.8]} 9... Re8 {[%clk
0:02:47]} 10. Nxc6 {[%clk 0:02:34.5]} 10... bxc6 {[%clk 0:02:47]} 11. Bf3 {[%clk
0:02:31.7]} 11... Nd7 {[%clk 0:02:33.1]} 12. O-O {[%clk 0:02:30.6]} 12... Ba6
{[%clk 0:02:30.1]} 13. Rfe1 {[%clk 0:02:21.5]} 13... Ne5 {[%clk 0:02:29.7]} 14.
Be2 {[%clk 0:02:21.1]} 14... Bxe2 {[%clk 0:02:27.8]} 15. Qxe2 {[%clk 0:02:22]}
15... Rb8 {[%clk 0:02:21.6]} 16. Rab1 {[%clk 0:02:13.1]} 16... a5 {[%clk
0:02:14.6]} 17. Red1 {[%clk 0:01:53]} 17... Qc8 {[%clk 0:02:11.8]} 18. f4 {[%clk
0:01:49.4]} 18... Nd7 {[%clk 0:02:11.2]} 19. Qc4 {[%clk 0:01:48.4]} 19... Qb7
{[%clk 0:01:49]} 20. Bd4 {[%clk 0:01:38.7]} 20... Qb4 {[%clk 0:01:40.6]} 21. Qd3
{[%clk 0:01:22]} 21... Qxd4+ {[%clk 0:01:32.4]} 22. Qxd4 {[%clk 0:01:21.9]}
22... Bxd4+ {[%clk 0:01:33.3]} 23. Rxd4 {[%clk 0:01:22.8]} 23... Rb4 {[%clk
0:01:33.5]} 24. Rd3 {[%clk 0:00:54]} 24... Nc5 {[%clk 0:01:28.6]} 25. Re3 {[%clk
0:00:54.5]} 25... Nxe4 {[%clk 0:01:26.6]} 26. Rbe1 {[%clk 0:00:54.3]} 26... f5
{[%clk 0:01:21.4]} 27. b3 {[%clk 0:00:52.4]} 27... d5 {[%clk 0:01:20]} 28. Na4
{[%clk 0:00:35.7]} 28... Rd8 {[%clk 0:01:02.2]} 29. Nb2 {[%clk 0:00:32.2]} 29...
Rbb8 {[%clk 0:00:52.9]} 30. Nd3 {[%clk 0:00:28.1]} 30... c5 {[%clk 0:00:51.5]}
31. Ne5 {[%clk 0:00:25]} 31... Rb6 {[%clk 0:00:49.9]} 32. Rd1 {[%clk 0:00:20.8]}
32... a4 {[%clk 0:00:49.3]} 33. bxa4 {[%clk 0:00:20.5]} 33... d4 {[%clk
0:00:48.9]} 34. Ra3 {[%clk 0:00:20.3]} 34... Ra8 {[%clk 0:00:45]} 35. a5 {[%clk
0:00:17.6]} 35... Rb2 {[%clk 0:00:41.3]} 36. a6 {[%clk 0:00:16.5]} 36... Nc3
{[%clk 0:00:35.3]} 37. Re1 {[%clk 0:00:13]} 37... Rxa2 {[%clk 0:00:35]} 38. Rxa2
{[%clk 0:00:12]} 38... Nxa2 {[%clk 0:00:35.9]} 39. Nd7 {[%clk 0:00:09.1]} 39...
c4 {[%clk 0:00:36.2]} 40. Nc5 {[%clk 0:00:09.3]} 40... Nb4 {[%clk 0:00:34.3]}
41. Rc1 {[%clk 0:00:07.7]} 41... c6 {[%clk 0:00:29]} 42. Kf2 {[%clk 0:00:02]}
42... Nxa6 {[%clk 0:00:29]} 43. Ne6 {[%clk 0:00:02.8]} 43... c5 {[%clk
0:00:25.9]} 44. Rb1 {[%clk 0:00:01.7]} 44... Nb4 {[%clk 0:00:22.5]} 45. Nxc5
{[%clk 0:00:02.3]} 45... Nxc2 {[%clk 0:00:22.7]} 46. Rb2 {[%clk 0:00:01.9]}
46... d3 {[%clk 0:00:22.4]} 47. Ne6 {[%clk 0:00:01.9]} 47... c3 {[%clk
0:00:21.3]} 48. Rb7 {[%clk 0:00:02.4]} 48... d2 {[%clk 0:00:20.2]} 49. Rg7+
{[%clk 0:00:02.7]} 49... Kh8 {[%clk 0:00:20.6]} 0-1